Cogmind - Beta 14 @@@ ROGUE MODE // 2024.11.24 @ 14:43:40 Player: akira Result: Destroyed by YI-UF0 with YI-UF0's Doublenader Performance ------------- Evolutions (0) 0 Regions Visited (2) 400 Robots Destroyed (19) 95 Value Destroyed (564) 564 Prototype IDs (0) 0 Alien Tech Used (0) 0 Bonus (0) 0 TOTAL SCORE: 1059 Bonus ------- None Cogmind --------- Core Integrity 0/250 Matter 76/300 Energy 125/250 System Corruption 0% Temperature Cool (0) Movement Walking (120) Location -10/Mines Parts ------- > --- POWER (1) -------- Ion Engine > --- PROPULSION (2) --- Aluminum Leg Aluminum Leg > --- UTILITY (2) ------ Medium Storage Unit Signal Interpreter > --- WEAPON (2) ------- Assault Rifle > --- INVENTORY (10) --- Improved Heat Sink Small Storage Unit Large Storage Unit Improved Targeting Computer Core Shielding Trap Extractor (0/4) EM Pulse Gun Peak State ------------ > --- POWER ------------ Light Ion Engine > --- PROPULSION ------- Aluminum Leg Aluminum Leg > --- UTILITY ---------- Medium Storage Unit Signal Interpreter > --- WEAPON ----------- EM Pulse Gun Assault Rifle > --- INVENTORY -------- Aluminum Leg Aluminum Leg Aluminum Leg Improved Heat Sink Small Storage Unit Large Storage Unit Core Shielding Small Laser [Rating: 8] Favorites ----------- Power Ion Engine Engine Ion Engine Propulsion Aluminum Leg Treads Light Treads Leg Aluminum Leg Utility Signal Interpreter Storage Medium Storage Unit Processor Signal Interpreter Weapon EM Pulse Gun Energy Gun EM Pulse Gun Ballistic Gun Assault Rifle Launcher Grenade Launcher Build | -11 -10 -10 ------- Run | Yrd Mat Min Slots Evolved . | . . . Power . | . . . Propulsion . | . . . Utility . | . . . Weapon . | . . . Parts Attached 25 | 5 16 4 Power 5 | 1 3 1 Engine 5 | 1 3 1 Core . | . . . Reactor . | . . . Propulsion 10 | 2 6 2 Treads 2 | 2 . . Leg 8 | . 6 2 Wheel . | . . . Hover . | . . . Flight . | . . . Utility 4 | 1 3 . Device . | . . . Storage 3 | 1 2 . Processor 1 | . 1 . Hackware . | . . . Protection . | . . . Artifact . | . . . Weapon 6 | 1 4 1 Energy Gun 2 | . 2 . Energy Cannon . | . . . Ballistic Gun 3 | 1 2 . Ballistic Cannon . | . . . Launcher 1 | . . 1 Special Weapon . | . . . Impact Weapon . | . . . Slashing Weapon . | . . . Piercing Weapon . | . . . Special Melee Weapon . | . . . Unidentified Prototypes . | . . . Parts Lost 5 | . 2 3 Power 1 | . . 1 Propulsion 2 | . 1 1 Utility . | . . . Weapon 2 | . 1 1 Highest Loss Streak 3 | . 1 3 To Critical Strikes . | . . . Average Slot Usage (%) 90 | . 89 97 Engine 14 | . 14 14 Treads 5 | . 6 . Leg 21 | . 20 27 Storage 14 | . 14 14 Processor 8 | . 7 14 Energy Gun 8 | . 9 3 Ballistic Gun 14 | . 14 14 Launcher 1 | . . 10 Peak Build Rating 8 | 5 8 8 Average Rating 6 | 3 6 7 On Entrance 4 | . 5 8 Naked Turns . | . . . Heaviest Build 25 | 11 25 20 Greatest Support 40 | 40 40 20 Greatest Overweight (x) 1 | . 1 1 Average Overweight (x) . | . . . Largest Inventory Capacity 15 | 8 15 10 Average Capacity 8 | 6 8 10 Most Carried 10 | 5 10 10 Average Carried 6 | 4 6 9 Final Capacity 10 | 8 10 10 Final Carried 10 | 5 10 7 Class Distribution -------------------- 100% | Mutant Dominant Class ---------------- Mutant | -10/Materials Mutant | -10/Mines Resources | -11 -10 -10 ----------- Run | Yrd Mat Min Matter Collected 422 | 188 234 . Remotely . | . . . Salvage Created 688 | . 676 12 Parts 44 | . 44 . Haulers Intercepted . | . . . Recyclers Shooed . | . . . Parts Field Recycled . | . . . Retrieved Matter . | . . . Parts Self-Destructed . | . . . Prevented . | . . . Kills | -11 -10 -10 ------- Run | Yrd Mat Min Combat Hostiles Destroyed 20 | . 17 3 Guns 17 | . 17 . AOE 3 | . . 3 Classes Destroyed 4 | . 3 1 Operator 2 | . 2 . Swarmer 3 | . 3 . Grunt 14 | . 14 . Assembled 3 | . . 3 Best Kill Streak 2 | . 2 2 Combat Bots Only 2 | . 2 2 Max Kills in Single Turn 1 | . 1 1 Gunslinging . | . . . Exploded 1 | . . 1 Melee . | . . . Uniques/NPCs Destroyed . | . . . Combat | -11 -10 -10 -------- Run | Yrd Mat Min Hostile Shots Fired 122 | . 102 20 Missed 35 | . 30 5 Damage Taken 1221 | . 824 397 Core 253 | . 166 87 Absorbed by Shields . | . . . Core Remaining (%) 100 | 100 . . Volleys Fired 89 | . 80 9 Largest 2 | . 2 1 Hottest 60 | . 60 30 Shots Fired 121 | . 112 9 Gun 115 | . 112 3 Cannon . | . . . Launcher 6 | . . 6 Special . | . . . Kinetic 87 | . 84 3 Thermal . | . . . Explosive 6 | . . 6 Electromagnetic 28 | . 28 . Robot Hit Streak 7 | . 7 7 Robot Miss Streak 3 | . 3 2 Penetration Max . | . . . Secondary Targets 2 | . 2 . Max Gunslinging Chain 1 | . 1 . Shots Hit Robots 79 | . 74 5 Core Hits 48 | . 33 15 Critical Kills 1 | . 1 . Critical Parts Destroyed . | . . . Critical Strikes 1 | . 1 . Destroy 1 | . 1 . Melee Attacks . | . . . Impact . | . . . Slashing . | . . . Piercing . | . . . Sneak Attacks . | . . . Combat Hostiles . | . . . Follow-up Attacks . | . . . Damage Inflicted 1023 | . 807 216 Guns 831 | . 807 24 Cannons . | . . . Explosions 192 | . . 192 Melee . | . . . Ramming . | . . . Kinetic 580 | . 556 24 Thermal . | . . . Explosive 192 | . . 192 Electromagnetic 251 | . 251 . Impact . | . . . Slashing . | . . . Piercing . | . . . Highest Corruption . | . . . Average Corruption . | . . . Corruption Purged . | . . . Corruption Blocked . | . . . Overload Shots . | . . . Overflow Damage . | . . . Projectiles . | . . . Explosions . | . . . Melee . | . . . Knockbacks . | . . . Impact . | . . . Kinetic . | . . . Secondary . | . . . Self-Inflicted Damage 26 | . . 26 Shots 1 | . . 1 Rammed . | . . . Targets Rammed . | . . . Kicked . | . . . Crushed . | . . . Highest Temperature 52 | . 52 . Average Temperature 21 | . 21 . Received Heat Transfer 465 | . 465 . Siege Activations . | . . . Robots Corrupted . | . . . Combat Hostiles . | . . . Parts Fried 1 | . 1 . Impact Corruptions . | . . . Robots Melted . | . . . Combat Hostiles . | . . . Parts Melted . | . . . Heat Transferred . | . . . Parts Sabotaged . | . . . Parts Stolen . | . . . Parts Stripped . | . . . Power Chain Reactions . | . . . Alert | -11 -10 -10 ------- Run | Yrd Mat Min Peak Influence 210 | . 210 105 Initial 55 | . . 55 Average 92 | . 99 77 Maximum Alert Level 1 | . 1 . Low Security (%) 96 | 100 95 100 Level 1 3 | . 4 . Level 2 . | . . . Level 3 . | . . . Level 4 . | . . . Level 5 . | . . . High Security . | . . . Max Security . | . . . Squads Dispatched 5 | . 5 . Investigation 3 | . 3 . Extermination . | . . . Reinforcement 2 | . 2 . Assault . | . . . Garrison . | . . . Intercept . | . . . Searches Triggered . | . . . Construction Impeded . | . . . Haulers Reinforced . | . . . Active Scanning Responses . | . . . Cargo Convoy Interrupts . | . . . Stealth | -11 -10 -10 --------- Run | Yrd Mat Min Distress Signals 3 | . 3 . Communications Jammed . | . . . Distress Signals . | . . . Times Spotted 40 | . 28 12 Peak Tracking Total 6 | . 5 6 Tactical Retreats 2 | . 1 1 Traps | -11 -10 -10 ------- Run | Yrd Mat Min Traps Triggered 2 | . 2 . Indirectly . | . . . Trap Hack Attempts . | . . . Triggered . | . . . Disarmed . | . . . Reprogrammed . | . . . Reused . | . . . Traps Extracted . | . . . Installed . | . . . Triggered . | . . . Machines | -11 -10 -10 ---------- Run | Yrd Mat Min Machines Disabled . | . . . Max in Single Turn . | . . . Machines Repaired . | . . . Machines Dismantled . | . . . Machines Sabotaged . | . . . Overloaded Fab Kills . | . . . Hacking | -11 -10 -10 --------- Run | Yrd Mat Min Machines Accessed 1 | . 1 . Terminals 1 | . 1 . Fabricators . | . . . Repair Stations . | . . . Recycling Units . | . . . Scanalyzers . | . . . Garrison Access . | . . . Total Hacks 4 | . 4 . Successful 1 | . 1 . Failed 3 | . 3 . Catastrophic . | . . . Database Lockouts . | . . . Manual 4 | . 4 . Terminals 4 | . 4 . Fabricators . | . . . Repair Stations . | . . . Recycling Units . | . . . Scanalyzers . | . . . Garrison Access . | . . . Terminal Hacks 1 | . 1 . Robot Analysis 1 | . 1 . Fabricator Hacks . | . . . Repair Station Hacks . | . . . Recycling Unit Hacks . | . . . Scanalyzer . | . . . Garrison Access Hacks . | . . . Unauthorized Hacks . | . . . Terminals . | . . . Fabricators . | . . . Repair Stations . | . . . Recycling Units . | . . . Scanalyzers . | . . . Garrison Access . | . . . Data Cores Recovered . | . . . Used . | . . . Hacking Detections 1 | . 1 . Full Trace Events 1 | . 1 . Feedback Events . | . . . Feedback Blocked . | . . . Robot Schematics Acquired . | . . . Robots Built . | . . . Authchips . | . . . Time . | . . . Total Robot Build Rating . | . . . Part Schematics Acquired . | . . . Parts Built . | . . . Authchips . | . . . Time . | . . . Total Part Build Rating . | . . . Parts Repaired . | . . . Time . | . . . Parts Recycled . | . . . Recycled Matter . | . . . Retrieved Matter . | . . . Retrieved Components . | . . . Parts Scanalyzed . | . . . Part Schematics Acquired . | . . . Parts Damaged . | . . . Bothacking | -11 -10 -10 ------------ Run | Yrd Mat Min Used RIF Installer . | . . . Robots Hacked . | . . . Non-combat . | . . . Combat . | . . . Robot Hacks Applied . | . . . Relay Couplers Released . | . . . Fabnet Peak Effective % . | . . . Robots Rewired . | . . . Allies Hacked . | . . . Hacks Repelled . | . . . Allies | -11 -10 -10 -------- Run | Yrd Mat Min Total Allies . | . . . Largest Group . | . . . Highest-Rated Group . | . . . Highest-Rated Ally . | . . . Total Orders . | . . . Ally Attacks . | . . . Total Damage . | . . . Kills . | . . . Allies Corrupted . | . . . Allies Melted . | . . . Intel | -11 -10 -10 ------- Run | Yrd Mat Min Robot Analysis Total 1 | . 1 . Derelict Logs Recovered . | . . . Drone Launches . | . . . Drone Recoveries . | . . . Exploration | -11 -10 -10 ------------- Run | Yrd Mat Min Turns Passed 1283 | 69 1075 139 Spaces Moved 723 | 43 588 92 Core 12 | 12 . . Treads 114 | 31 83 . Legs 597 | . 505 92 Wheels . | . . . Hover . | . . . Flight . | . . . Fastest Speed 50 | 50 120 120 Average Speed 125 | 129 125 123 Slowest Speed 190 | 160 190 190 Overloaded Moves . | . . . Propulsion Burnouts . | . . . Robots Hopped . | . . . Cave-ins Triggered . | . . . Exploration Rate (%) 39 | 4 89 25 Regions Visited 2 Branch Regions 1 Pre-discovered Areas . | . . . Known Exits Taken 1 | . 1 . Unknown Exits Taken 1 | 1 . . Scrap Searched . | . . . Spaces Dug . | . . . Terrain Destroyed 36 | . . 36 Melee . | . . . Projectile . | . . . AOE 36 | . . 36 Terrain Rammed . | . . . Walls Destroyed . | . . . Machines Disabled . | . . . Actions | -11 -10 -10 --------- Run | Yrd Mat Min Total 985 | 57 820 108 Wait 118 | . 117 1 Move 721 | 42 587 92 Hop . | . . . Pick Up 23 | 10 12 1 Fast Attach . | . . . Attach 12 | 5 4 3 Detach . | . . . Swap 13 | . 12 1 Drop 9 | . 8 1 Fire 89 | . 80 9 Melee . | . . . Ram . | . . . Kick . | . . . Crush . | . . . Escape Stasis . | . . . Rewire . | . . . Trap . | . . . Miscellaneous . | . . . Route ------- -11/Scrapyard -10/Materials (discovered 4 exits: *Mat x2 / *Min x2) -10/Mines History --------- Turn | Location | Event 6 | -11/Scrapyard | Discovered new exit (range 14) 70 | -11/Scrapyard | Entered Materials 338 | -10/Materials | Build established: Mutant 385 | -10/Materials | Discovered new exit (range 14) 547 | -10/Materials | Discovered new exit (range 6) 612 | -10/Materials | Core integrity fell below 50% 828 | -10/Materials | Discovered new exit (range 8) 990 | -10/Materials | Discovered new exit (range 15) 1047 | -10/Materials | Identified exit to Materials 1135 | -10/Materials | Identified exit to Mines 1145 | -10/Materials | Entered Mines 1146 | -10/Mines | YI-UF0 nonchalantly dropped a Grenade Launcher on the ground 1177 | -10/Mines | Assembled infested the area 1182 | -10/Mines | Assisted by a Guerilla fighting off Assembled 1274 | -10/Mines | Core integrity fell below 20% 1284 | -10/Mines | Destroyed by YI-UF0 with YI-UF0's Doublenader Last Messages --------------- 01199_ as-42491 destroyed. 01201_ as-96345 destroyed. 01207_ T-07 Excavator is excavating. 01222_ as-97489 destroyed. 01235_ Aluminum Leg severed. 01242_ YI-UF0 mumbles something. 01242_ YI-UF0: "KAPOW!" 01242_ as-56954 destroyed. 01242_ YI-UF0: "KAPOW!" 01242_ as-66950 destroyed. 01244_ as-14505 destroyed. 01244_ as-18785 destroyed. 01260_ T-07 Excavator is excavating. 01273_ Ion Engine destroyed. 01275_ D-53 Grenadier destroyed. 01275_ Grenade Launcher destroyed. 01275_ Aluminum Leg destroyed. 01276_ The unstable cave ceiling collapses. 01283_ YI-UF0: "Whaaaaaaaa!" 01284_ The unstable cave ceiling collapses. Map ----- +----------------------------------------------------+ | | | | | | | | | | | | | ???????????????????????????????????? | | ???????????????????????????????????? | | ???????????????????????????????????? | | ???????????????????????????????????? | | ?????????###???????????????????????? | | ????????# ##??????????????????????? | | ??????## #??????????????????????? | | ?????## ##?????????????????????? | | ????## #?????????????????????? | | ???## #?????????????????????? | | ???# ## #??????#####??????????? | | ???# [### ????????# #??????????? | | ???## #?# ????????## #??????????? | | ????## #?# ######### #??????????? | | ?????# ### #??????????? | | ?????# # ###??????????? | | ?????#### ## # # ##???????????? | | ???????## # ######??????? | | ?????### ## ##?????? | | ????## @ # ## ##????? | | ????# # ## ####?? | | ????# #?? | | ????# #?? | | ????# g #? | | ????## #? | | ?????## ##### #? | | ??????# d #????# #? | | ?????? ##?????# ? | | ?????## #?????# | | ??????# #????? | | ??????## ?????? ## | | ???????# #????? % #? | | ???????# ?? ! #? | | ???????## # # %####? | | ??????## #????? | | ?????## ? #????? | | ?????# ##?? ###????? | | ?????# ##??? ####??????? | | ?????## #???? ? ###?????????? | | ??????# ## #???????? ##???????????? | | ??????# ?# #???????? ?????????????? | | ??????# ? #??????????????????????? | | ??????#### #??????????????????????? | | ?????????# ??????????????????????? | +----------------------------------------------------+ Best States ------------- Heat Dissipation 25 Energy Generation 10 Energy Capacity 250 Matter Stores 300 Matter Capacity 300 Sight Range 16 Terrain Scan Density 10 Evasion (%) 55 Recoil Reduction 2 Item Schematics ----------------- None Robot Schematics ------------------ None Fabricated ------------ Nothing Alien Tech Used ----------------- None Achievements -------------- None Challenges ------------ None Game ------ Seed SegregatorShadingLaser Manual? 0 Play Time 00:16:09 Cumulative 33.3 hours Start 2024.11.24 @ 14:29:59 End 2024.11.24 @ 14:43:40 Sessions 1 Manual Loads 0 Difficulty Rogue Special Mode None Game No. 48 Rogue 48 Adventurer 0 Explorer 0 Win Type - Total 0 Types 0/0/0/0/0/0/0/0/0 Lore% 9 Gallery% 21 Achievement% 23 Wizard Run 0 Options --------- Layout 1 ASCII 0 Keyboard 0 Movement Mouse Keybinds 0 Fullscreen 2 Font 16/SmallcapsGlow Map View 55x38 Zoom Use 73% Tactical HUD 1 Map Filters NONE Filters NONE Steam 1 RUN: b484eb9e-466d-42f4-a461-7287a7fbbf1a